[Event "*** Titled Tuesday Blitz"]
[Site "Chess.com"]
[Date "2021.03.09"]
[Round "3"]
[White "Trovita84"]
[Black "FeketeBarika"]
[Result "1-0"]
[WhiteElo "2079"]
[BlackElo "2281"]
[TimeControl "180+1"]
[EndTime "10:28:09 PST"]
[Termination "Trovita84 won by resignation"]

1. e4 {[%clk 0:03:00.9]} 1... e6 {[%clk 0:02:59.7]} 2. d4 {[%clk 0:03:00.8]}
2... d5 {[%clk 0:03:00.6]} 3. exd5 {[%clk 0:03:00.9]} 3... exd5 {[%clk 0:02:57]}
4. Nf3 {[%clk 0:03:01.8]} 4... Bd6 {[%clk 0:02:56.4]} 5. Bd3 {[%clk 0:03:02.5]}
5... Ne7 {[%clk 0:02:56.6]} 6. h3 {[%clk 0:03:03.2]} 6... Nbc6 {[%clk
0:02:56.9]} 7. O-O {[%clk 0:03:04.1]} 7... f6 {[%clk 0:02:52.7]} 8. c3 {[%clk
0:03:04.6]} 8... Bf5 {[%clk 0:02:51.6]} 9. Qc2 {[%clk 0:03:04]} 9... Bxd3 {[%clk
0:02:49.9]} 10. Qxd3 {[%clk 0:03:04.9]} 10... Qd7 {[%clk 0:02:50.3]} 11. b4
{[%clk 0:02:59.4]} 11... g5 {[%clk 0:02:49.2]} 12. a4 {[%clk 0:02:56.3]} 12...
O-O-O {[%clk 0:02:46.3]} 13. a5 {[%clk 0:02:54.5]} 13... Nb8 {[%clk 0:02:45]}
14. Nbd2 {[%clk 0:02:50.1]} 14... h5 {[%clk 0:02:43.4]} 15. Re1 {[%clk
0:02:49.2]} 15... g4 {[%clk 0:02:43.6]} 16. Nh4 {[%clk 0:02:45.2]} 16... Rdg8
{[%clk 0:02:35.7]} 17. Kh1 {[%clk 0:02:44.1]} 17... g3 {[%clk 0:02:30.1]} 18. f3
{[%clk 0:02:31.8]} 18... Bf4 {[%clk 0:02:27.2]} 19. Rxe7 {[%clk 0:02:24.5]}
19... Qxe7 {[%clk 0:02:23.6]} 20. Qf5+ {[%clk 0:02:20.6]} 20... Nd7 {[%clk
0:02:23.9]} 21. Nf1 {[%clk 0:02:00.4]} 21... Bxc1 {[%clk 0:02:15.1]} 22. Rxc1
{[%clk 0:02:01.3]} 22... Rg5 {[%clk 0:02:09.9]} 23. Qf4 {[%clk 0:01:45.4]} 23...
Rhg8 {[%clk 0:02:02.3]} 24. Nf5 {[%clk 0:01:41.8]} 24... Qh7 {[%clk 0:01:47.4]}
25. N1e3 {[%clk 0:01:39.9]} 25... Re8 {[%clk 0:01:42.4]} 26. h4 {[%clk
0:01:34.3]} 26... Rgg8 {[%clk 0:01:38.7]} 27. Nxd5 {[%clk 0:01:30.1]} 27... Nb8
{[%clk 0:01:30.4]} 28. Nxf6 {[%clk 0:01:27.7]} 28... Qf7 {[%clk 0:01:21.4]} 29.
Nxe8 {[%clk 0:01:25.2]} 29... Qxe8 {[%clk 0:01:21.4]} 30. Nxg3 {[%clk
0:01:14.7]} 30... Nd7 {[%clk 0:01:16.9]} 31. Ne4 {[%clk 0:01:00.6]} 31... Qg6
{[%clk 0:01:13.9]} 32. Rg1 {[%clk 0:00:57.2]} 32... Rf8 {[%clk 0:01:08.5]} 33.
Qg5 {[%clk 0:00:56]} 33... Qe6 {[%clk 0:01:08.3]} 34. Nc5 {[%clk 0:00:48.2]}
34... Nxc5 {[%clk 0:01:07.1]} 35. Qxc5 {[%clk 0:00:49.1]} 35... Rg8 {[%clk
0:01:05]} 36. Qxa7 {[%clk 0:00:45.2]} 36... Qe7 {[%clk 0:01:03.4]} 37. g3 {[%clk
0:00:29.5]} 37... Qe2 {[%clk 0:01:00.7]} 38. Qa8+ {[%clk 0:00:27.4]} 38... Kd7
{[%clk 0:01:00.9]} 39. Qxg8 {[%clk 0:00:27.9]} 39... Qxf3+ {[%clk 0:01:01.1]}
40. Kh2 {[%clk 0:00:28.4]} 40... Qf2+ {[%clk 0:01:01.4]} 41. Rg2 {[%clk
0:00:28.9]} 1-0

[Event "*** Titled Tuesday Blitz"]
[Site "Chess.com"]
[Date "2021.03.09"]
[Round "3"]
[White "atbenina64"]
[Black "Barbus89"]
[Result "1-0"]
[WhiteElo "2499"]
[BlackElo "2274"]
[TimeControl "180+1"]
[EndTime "10:28:10 PST"]
[Termination "atbenina64 won on time"]

1. Nf3 {[%clk 0:03:00.9]} 1... Nf6 {[%clk 0:02:59]} 2. c4 {[%clk 0:03:01.1]}
2... c5 {[%clk 0:02:56.4]} 3. Nc3 {[%clk 0:03:01.1]} 3... d5 {[%clk 0:02:56.1]}
4. cxd5 {[%clk 0:03:01.2]} 4... Nxd5 {[%clk 0:02:56]} 5. e3 {[%clk 0:03:01.5]}
5... g6 {[%clk 0:02:55.6]} 6. Bc4 {[%clk 0:02:57.5]} 6... Nc7 {[%clk 0:02:55.3]}
7. d4 {[%clk 0:02:54.6]} 7... Bg7 {[%clk 0:02:51]} 8. h3 {[%clk 0:02:54.2]} 8...
O-O {[%clk 0:02:50.1]} 9. O-O {[%clk 0:02:53]} 9... cxd4 {[%clk 0:02:47.5]} 10.
exd4 {[%clk 0:02:53.9]} 10... Nc6 {[%clk 0:02:44.8]} 11. Be3 {[%clk 0:02:51]}
11... a6 {[%clk 0:02:37.3]} 12. Rc1 {[%clk 0:02:46.8]} 12... e5 {[%clk 0:02:20]}
13. Bg5 {[%clk 0:02:23]} 13... Qe8 {[%clk 0:01:48.5]} 14. d5 {[%clk 0:02:11.3]}
14... Nd4 {[%clk 0:01:43.4]} 15. Re1 {[%clk 0:02:05.9]} 15... Qd7 {[%clk
0:01:06]} 16. Nxe5 {[%clk 0:02:03.3]} 16... Qf5 {[%clk 0:00:59.4]} 17. Be3
{[%clk 0:01:46.6]} 17... Qxe5 {[%clk 0:00:54.1]} 18. f4 {[%clk 0:01:38.2]} 18...
Qf6 {[%clk 0:00:45.5]} 19. Ne4 {[%clk 0:01:38]} 19... Qb6 {[%clk 0:00:44.8]} 20.
Qd2 {[%clk 0:01:34.4]} 20... Re8 {[%clk 0:00:36]} 21. Ng3 {[%clk 0:01:27.2]}
21... Bd7 {[%clk 0:00:21.7]} 22. Kh2 {[%clk 0:01:26.9]} 22... Bb5 {[%clk
0:00:18.6]} 23. b3 {[%clk 0:01:23.4]} 23... Bxc4 {[%clk 0:00:11.2]} 24. bxc4
{[%clk 0:01:24.3]} 24... Rxe3 {[%clk 0:00:07.4]} 25. Rxe3 {[%clk 0:01:18]} 25...
Re8 {[%clk 0:00:04.5]} 26. Rce1 {[%clk 0:01:16.9]} 26... Rxe3 {[%clk 0:00:03.7]}
27. Qxe3 {[%clk 0:01:17.8]} 27... h5 {[%clk 0:00:02.4]} 28. Qe7 {[%clk
0:01:13.5]} 28... h4 {[%clk 0:00:01.8]} 29. Ne2 {[%clk 0:01:05.9]} 29... Nxe2
{[%clk 0:00:01.6]} 30. Rxe2 {[%clk 0:01:06.8]} 1-0

[Event "*** Titled Tuesday Blitz"]
[Site "Chess.com"]
[Date "2021.03.09"]
[Round "3"]
[White "szachuspl"]
[Black "IECS12"]
[Result "1-0"]
[WhiteElo "2502"]
[BlackElo "2236"]
[TimeControl "180+1"]
[EndTime "10:28:15 PST"]
[Termination "szachuspl won on time"]

1. d4 {[%clk 0:03:00.9]} 1... Nf6 {[%clk 0:02:55.2]} 2. c4 {[%clk 0:03:00.5]}
2... e6 {[%clk 0:02:55.6]} 3. Nf3 {[%clk 0:03:00]} 3... b6 {[%clk 0:02:55.8]} 4.
g3 {[%clk 0:02:58.7]} 4... Bb7 {[%clk 0:02:55.5]} 5. Bg2 {[%clk 0:02:58.6]} 5...
Bb4+ {[%clk 0:02:54.6]} 6. Bd2 {[%clk 0:02:58.1]} 6... Bxd2+ {[%clk 0:02:53]} 7.
Qxd2 {[%clk 0:02:58.3]} 7... O-O {[%clk 0:02:53.2]} 8. O-O {[%clk 0:02:57.5]}
8... d5 {[%clk 0:02:52.9]} 9. cxd5 {[%clk 0:02:56.2]} 9... exd5 {[%clk
0:02:52.4]} 10. Rc1 {[%clk 0:02:53.6]} 10... Nbd7 {[%clk 0:02:50.8]} 11. Qf4
{[%clk 0:02:50.3]} 11... Rc8 {[%clk 0:02:48]} 12. Nc3 {[%clk 0:02:48.8]} 12...
a6 {[%clk 0:02:23.9]} 13. b4 {[%clk 0:02:41.3]} 13... Ne4 {[%clk 0:02:18.8]} 14.
Nxe4 {[%clk 0:02:35.7]} 14... dxe4 {[%clk 0:02:19.7]} 15. Nd2 {[%clk 0:02:33.7]}
15... Nf6 {[%clk 0:01:58.2]} 16. Nxe4 {[%clk 0:02:29.7]} 16... Bxe4 {[%clk
0:01:57.5]} 17. Bxe4 {[%clk 0:02:29]} 17... Re8 {[%clk 0:01:52.3]} 18. Bf3
{[%clk 0:02:28]} 18... Qe7 {[%clk 0:01:45.8]} 19. a3 {[%clk 0:02:24.1]} 19... h6
{[%clk 0:01:45.6]} 20. h4 {[%clk 0:02:23.5]} 20... c5 {[%clk 0:01:16.8]} 21.
bxc5 {[%clk 0:02:19.6]} 21... bxc5 {[%clk 0:01:17.7]} 22. d5 {[%clk 0:02:19.4]}
22... Red8 {[%clk 0:01:16.1]} 23. e4 {[%clk 0:02:17.2]} 23... Nd7 {[%clk
0:01:12.7]} 24. Rc3 {[%clk 0:02:11.4]} 24... Ne5 {[%clk 0:00:54.8]} 25. Rac1
{[%clk 0:02:07.8]} 25... c4 {[%clk 0:00:45.5]} 26. Be2 {[%clk 0:02:06.5]} 26...
Ng6 {[%clk 0:00:36.3]} 27. Qe3 {[%clk 0:02:03.4]} 27... Ne5 {[%clk 0:00:22.9]}
28. f4 {[%clk 0:01:58.8]} 28... Ng6 {[%clk 0:00:15.9]} 29. h5 {[%clk 0:01:52.9]}
29... Nf8 {[%clk 0:00:12.9]} 30. Bxc4 {[%clk 0:01:46.5]} 30... Nd7 {[%clk
0:00:12.2]} 31. Bf1 {[%clk 0:01:41.4]} 31... Rxc3 {[%clk 0:00:09.8]} 32. Rxc3
{[%clk 0:01:42.3]} 32... Qf6 {[%clk 0:00:09.4]} 33. Bg2 {[%clk 0:01:33.7]} 33...
Qe7 {[%clk 0:00:08.3]} 34. e5 {[%clk 0:01:29.6]} 34... Nb8 {[%clk 0:00:03.3]}
35. d6 {[%clk 0:01:28.4]} 35... Qd7 {[%clk 0:00:03.7]} 36. Qb6 {[%clk
0:01:24.8]} 36... Qg4 {[%clk 0:00:03.4]} 37. Qxd8+ {[%clk 0:01:23.4]} 37... Kh7
{[%clk 0:00:03.4]} 38. Be4+ {[%clk 0:01:22.5]} 38... g6 {[%clk 0:00:02.6]} 39.
hxg6+ {[%clk 0:01:22.7]} 39... Kg7 {[%clk 0:00:01.2]} 40. Qf6+ {[%clk
0:01:21.3]} 1-0

[Event "*** Titled Tuesday Blitz"]
[Site "Chess.com"]
[Date "2021.03.09"]
[Round "3"]
[White "BeanScreen"]
[Black "howitzer14"]
[Result "0-1"]
[WhiteElo "2676"]
[BlackElo "3030"]
[TimeControl "180+1"]
[EndTime "10:28:16 PST"]
[Termination "howitzer14 won by resignation"]

1. e4 {[%clk 0:03:00.9]} 1... c5 {[%clk 0:02:55.2]} 2. Nf3 {[%clk 0:03:00.7]}
2... Nc6 {[%clk 0:02:55.1]} 3. Nc3 {[%clk 0:03:00.2]} 3... e5 {[%clk 0:02:46.5]}
4. Bc4 {[%clk 0:02:59.3]} 4... Be7 {[%clk 0:02:45.8]} 5. d3 {[%clk 0:02:59.4]}
5... d6 {[%clk 0:02:45.1]} 6. Nd2 {[%clk 0:02:58.7]} 6... Nf6 {[%clk 0:02:35.6]}
7. Nf1 {[%clk 0:02:58.1]} 7... O-O {[%clk 0:02:36.2]} 8. Ne3 {[%clk 0:02:58.1]}
8... Be6 {[%clk 0:02:20]} 9. a4 {[%clk 0:02:57]} 9... a6 {[%clk 0:02:18.8]} 10.
Ned5 {[%clk 0:02:51.9]} 10... Nb4 {[%clk 0:02:11.3]} 11. Nxe7+ {[%clk
0:01:48.3]} 11... Qxe7 {[%clk 0:02:10.6]} 12. Bg5 {[%clk 0:01:36.7]} 12... h6
{[%clk 0:02:10.6]} 13. Bh4 {[%clk 0:01:34.5]} 13... Bxc4 {[%clk 0:01:58.4]} 14.
dxc4 {[%clk 0:01:34]} 14... Qe6 {[%clk 0:01:59]} 15. O-O {[%clk 0:01:27.2]}
15... g5 {[%clk 0:01:53.2]} 16. Bg3 {[%clk 0:01:23.7]} 16... Rad8 {[%clk
0:01:48.8]} 17. b3 {[%clk 0:01:20.9]} 17... Kg7 {[%clk 0:01:44.6]} 18. h4 {[%clk
0:01:15.2]} 18... Kg6 {[%clk 0:01:39.2]} 19. Qd2 {[%clk 0:01:08.7]} 19... Nh5
{[%clk 0:01:38.7]} 20. Nd5 {[%clk 0:01:06.5]} 20... Nxd5 {[%clk 0:01:34.4]} 21.
cxd5 {[%clk 0:01:05.5]} 21... Qg4 {[%clk 0:01:35]} 22. Rae1 {[%clk 0:00:42.7]}
22... gxh4 {[%clk 0:01:22.4]} 23. Bh2 {[%clk 0:00:42.8]} 23... h3 {[%clk
0:01:22.8]} 24. f3 {[%clk 0:00:39.3]} 24... Qxg2+ {[%clk 0:01:22]} 25. Qxg2+
{[%clk 0:00:38.8]} 25... hxg2 {[%clk 0:01:22.9]} 26. Kxg2 {[%clk 0:00:33.6]}
26... f5 {[%clk 0:01:23.8]} 27. Kf2 {[%clk 0:00:22.2]} 27... fxe4 {[%clk
0:01:20.7]} 28. Rxe4 {[%clk 0:00:23.1]} 28... Nf6 {[%clk 0:01:21.2]} 29. Rg1+
{[%clk 0:00:22.1]} 29... Kh7 {[%clk 0:01:21.2]} 30. Rh4 {[%clk 0:00:21.2]} 30...
Nxd5 {[%clk 0:01:19.2]} 31. c4 {[%clk 0:00:18.2]} 31... Ne7 {[%clk 0:01:16.2]}
32. Rh1 {[%clk 0:00:15.8]} 32... Rf6 {[%clk 0:01:13.4]} 33. Ke2 {[%clk
0:00:13.7]} 33... Rdf8 {[%clk 0:01:13.4]} 34. Rh3 {[%clk 0:00:14.2]} 34... Nf5
{[%clk 0:01:12.6]} 35. Bg1 {[%clk 0:00:14.4]} 35... Rg8 {[%clk 0:01:06.9]} 36.
Be3 {[%clk 0:00:13.5]} 36... Ng3+ {[%clk 0:01:05.4]} 37. Rxg3 {[%clk 0:00:11.8]}
37... Rxg3 {[%clk 0:01:06.3]} 0-1

[Event "*** Titled Tuesday Blitz"]
[Site "Chess.com"]
[Date "2021.03.09"]
[Round "3"]
[White "Kaslask"]
[Black "OriTaichman"]
[Result "0-1"]
[WhiteElo "2329"]
[BlackElo "2532"]
[TimeControl "180+1"]
[EndTime "10:28:16 PST"]
[Termination "OriTaichman won on time"]

1. d4 {[%clk 0:03:00.9]} 1... Nf6 {[%clk 0:02:57.2]} 2. c4 {[%clk 0:03:00.4]}
2... g6 {[%clk 0:02:55.5]} 3. Nc3 {[%clk 0:02:59.4]} 3... Bg7 {[%clk 0:02:51.4]}
4. e4 {[%clk 0:02:58.9]} 4... O-O {[%clk 0:02:44]} 5. Be2 {[%clk 0:02:58.9]}
5... d6 {[%clk 0:02:43.2]} 6. Nf3 {[%clk 0:02:57.9]} 6... e5 {[%clk 0:02:43.3]}
7. O-O {[%clk 0:02:57.5]} 7... Nc6 {[%clk 0:02:43.3]} 8. d5 {[%clk 0:02:56.3]}
8... Ne7 {[%clk 0:02:43.6]} 9. b4 {[%clk 0:02:56.3]} 9... Ne8 {[%clk 0:02:43.4]}
10. c5 {[%clk 0:02:51.8]} 10... f5 {[%clk 0:02:43.9]} 11. Ng5 {[%clk 0:02:49]}
11... Nf6 {[%clk 0:02:43.6]} 12. Bf3 {[%clk 0:02:46.3]} 12... h6 {[%clk
0:02:27.6]} 13. Ne6 {[%clk 0:02:44.9]} 13... Bxe6 {[%clk 0:02:28.1]} 14. dxe6
{[%clk 0:02:44.9]} 14... fxe4 {[%clk 0:02:28.6]} 15. cxd6 {[%clk 0:02:22.8]}
15... cxd6 {[%clk 0:02:22.3]} 16. Nxe4 {[%clk 0:02:21.9]} 16... Nxe4 {[%clk
0:02:21.6]} 17. Bxe4 {[%clk 0:02:21.8]} 17... d5 {[%clk 0:02:22.3]} 18. Bc2
{[%clk 0:02:17.1]} 18... Qd6 {[%clk 0:02:20.2]} 19. Ba3 {[%clk 0:02:05.4]} 19...
b5 {[%clk 0:02:06.9]} 20. Bb3 {[%clk 0:01:58.8]} 20... Qxe6 {[%clk 0:02:04.3]}
21. Bb2 {[%clk 0:01:56.8]} 21... Rad8 {[%clk 0:02:00.4]} 22. Rc1 {[%clk
0:01:54.7]} 22... Qb6 {[%clk 0:01:52.9]} 23. Qe2 {[%clk 0:01:42.7]} 23... e4
{[%clk 0:01:40.9]} 24. Qxe4 {[%clk 0:01:37.4]} 24... Bxb2 {[%clk 0:01:39]} 25.
Qxe7 {[%clk 0:01:33.6]} 25... Bxc1 {[%clk 0:01:39.2]} 26. Qe5 {[%clk 0:01:18.9]}
26... Bg5 {[%clk 0:01:16.9]} 27. Bxd5+ {[%clk 0:01:16.6]} 27... Kh7 {[%clk
0:01:16.2]} 28. h4 {[%clk 0:01:08.6]} 28... Qf6 {[%clk 0:01:12.4]} 29. Qc7+
{[%clk 0:01:02.4]} 29... Qe7 {[%clk 0:01:12.6]} 30. Qc6 {[%clk 0:00:43.7]} 30...
Bxh4 {[%clk 0:01:12.1]} 31. Be4 {[%clk 0:00:39.4]} 31... Rd6 {[%clk 0:01:10.9]}
32. Qc2 {[%clk 0:00:37.6]} 32... Rdf6 {[%clk 0:01:08]} 33. g3 {[%clk 0:00:36.6]}
33... Bxg3 {[%clk 0:01:07.5]} 34. Bxg6+ {[%clk 0:00:30.6]} 34... Rxg6 {[%clk
0:01:06.6]} 0-1

[Event "*** Titled Tuesday Blitz"]
[Site "Chess.com"]
[Date "2021.03.09"]
[Round "3"]
[White "Harry_Rakkel"]
[Black "GigaQuparadze"]
[Result "0-1"]
[WhiteElo "2638"]
[BlackElo "2955"]
[TimeControl "180+1"]
[EndTime "10:28:17 PST"]
[Termination "GigaQuparadze won by resignation"]

1. e4 {[%clk 0:03:00.9]} 1... c5 {[%clk 0:02:58.6]} 2. Nf3 {[%clk 0:02:59.8]}
2... e6 {[%clk 0:02:58.7]} 3. d4 {[%clk 0:02:59.6]} 3... cxd4 {[%clk 0:02:59.6]}
4. Nxd4 {[%clk 0:03:00]} 4... a6 {[%clk 0:02:59.9]} 5. Nc3 {[%clk 0:02:56.4]}
5... b5 {[%clk 0:02:59]} 6. Bd3 {[%clk 0:02:55.7]} 6... Qb6 {[%clk 0:02:57.6]}
7. Nb3 {[%clk 0:02:54.7]} 7... Qc7 {[%clk 0:02:56.3]} 8. O-O {[%clk 0:02:53.1]}
8... Bb7 {[%clk 0:02:56.4]} 9. Qe2 {[%clk 0:02:51.5]} 9... d6 {[%clk 0:02:50.8]}
10. f4 {[%clk 0:02:47.3]} 10... Nd7 {[%clk 0:02:49.2]} 11. Kh1 {[%clk
0:02:45.9]} 11... Ngf6 {[%clk 0:02:47.6]} 12. Bd2 {[%clk 0:02:36.4]} 12... Nc5
{[%clk 0:02:38.8]} 13. a3 {[%clk 0:02:00.8]} 13... Be7 {[%clk 0:02:35.7]} 14.
Rf3 {[%clk 0:02:00]} 14... g6 {[%clk 0:02:30.8]} 15. Raf1 {[%clk 0:01:54.6]}
15... Bc6 {[%clk 0:02:25.4]} 16. Rh3 {[%clk 0:01:46.1]} 16... Qb7 {[%clk
0:02:22.4]} 17. e5 {[%clk 0:01:38.7]} 17... Nxb3 {[%clk 0:02:18.8]} 18. cxb3
{[%clk 0:01:26.4]} 18... Nd7 {[%clk 0:01:59.9]} 19. exd6 {[%clk 0:01:05.1]}
19... Bxd6 {[%clk 0:02:00.8]} 20. Ne4 {[%clk 0:01:04.9]} 20... Be7 {[%clk
0:02:00.8]} 21. Bc3 {[%clk 0:00:58.7]} 21... f6 {[%clk 0:02:00.8]} 22. Nd2
{[%clk 0:00:22]} 22... O-O-O {[%clk 0:01:57]} 23. Rg3 {[%clk 0:00:21]} 23... Nc5
{[%clk 0:01:55.3]} 24. Bc2 {[%clk 0:00:20]} 24... Bd5 {[%clk 0:01:49.5]} 25. Rc1
{[%clk 0:00:19.4]} 25... Kb8 {[%clk 0:01:48.3]} 26. b4 {[%clk 0:00:18]} 26...
Nd7 {[%clk 0:01:47.7]} 27. Ne4 {[%clk 0:00:17.2]} 27... Rc8 {[%clk 0:01:44.4]}
28. Re1 {[%clk 0:00:16.3]} 28... Rhd8 {[%clk 0:01:43.2]} 29. Bb1 {[%clk
0:00:16.4]} 29... Ka8 {[%clk 0:01:38.3]} 30. Re3 {[%clk 0:00:15.8]} 30... h6
{[%clk 0:01:34.2]} 31. Qf2 {[%clk 0:00:15.7]} 31... g5 {[%clk 0:01:29.1]} 32.
R3e2 {[%clk 0:00:12.8]} 32... f5 {[%clk 0:01:20.9]} 33. Nc5 {[%clk 0:00:11.4]}
33... Nxc5 {[%clk 0:01:20.5]} 34. bxc5 {[%clk 0:00:11.3]} 34... Bxc5 {[%clk
0:01:21.4]} 35. Qg3 {[%clk 0:00:09.6]} 35... Rg8 {[%clk 0:01:21.1]} 36. fxg5
{[%clk 0:00:08.9]} 36... Rxg5 {[%clk 0:01:22]} 37. Qh3 {[%clk 0:00:08.6]} 37...
Rcg8 {[%clk 0:01:21.4]} 0-1

[Event "*** Titled Tuesday Blitz"]
[Site "Chess.com"]
[Date "2021.03.09"]
[Round "3"]
[White "FGHSMN"]
[Black "SHIVACalypso"]
[Result "0-1"]
[WhiteElo "2686"]
[BlackElo "2362"]
[TimeControl "180+1"]
[EndTime "10:28:22 PST"]
[Termination "SHIVACalypso won by checkmate"]

1. e4 {[%clk 0:03:00.9]} 1... e6 {[%clk 0:02:59.5]} 2. d4 {[%clk 0:03:00.6]}
2... d5 {[%clk 0:02:58.9]} 3. Nc3 {[%clk 0:03:01.5]} 3... Nf6 {[%clk 0:02:56.4]}
4. Bg5 {[%clk 0:03:00.7]} 4... dxe4 {[%clk 0:02:53.3]} 5. Nxe4 {[%clk
0:03:00.2]} 5... Be7 {[%clk 0:02:53.3]} 6. Bxf6 {[%clk 0:02:58.8]} 6... gxf6
{[%clk 0:02:52.6]} 7. Nf3 {[%clk 0:02:54.9]} 7... f5 {[%clk 0:02:52.7]} 8. Nc3
{[%clk 0:02:53.8]} 8... a6 {[%clk 0:02:52.9]} 9. Qd2 {[%clk 0:02:50.4]} 9... b5
{[%clk 0:02:51.3]} 10. O-O-O {[%clk 0:02:49.5]} 10... Qd6 {[%clk 0:02:50.7]} 11.
Bd3 {[%clk 0:02:38.1]} 11... Nd7 {[%clk 0:02:43.4]} 12. Rhe1 {[%clk 0:02:36.1]}
12... Nb6 {[%clk 0:02:19.2]} 13. Qh6 {[%clk 0:02:23.8]} 13... Bb7 {[%clk
0:01:59.7]} 14. Ne5 {[%clk 0:02:21.5]} 14... Nd5 {[%clk 0:01:26.3]} 15. Nxd5
{[%clk 0:01:59.6]} 15... Bxd5 {[%clk 0:01:27.2]} 16. Qh5 {[%clk 0:01:58.3]}
16... Rf8 {[%clk 0:01:23.2]} 17. Kb1 {[%clk 0:01:54]} 17... c5 {[%clk
0:00:55.9]} 18. dxc5 {[%clk 0:01:50.6]} 18... Qxc5 {[%clk 0:00:56.8]} 19. g4
{[%clk 0:01:30.9]} 19... fxg4 {[%clk 0:00:47.1]} 20. Bxh7 {[%clk 0:01:28.6]}
20... Bf6 {[%clk 0:00:25.7]} 21. Ka1 {[%clk 0:01:03.5]} 21... O-O-O {[%clk
0:00:18.6]} 22. Nxf7 {[%clk 0:00:58.6]} 22... Qa3 {[%clk 0:00:18.6]} 23. Nd6+
{[%clk 0:00:31.8]} 23... Rxd6 {[%clk 0:00:17.4]} 24. Re5 {[%clk 0:00:23.3]}
24... Qxa2# {[%clk 0:00:16.7]} 0-1

[Event "*** Titled Tuesday Blitz"]
[Site "Chess.com"]
[Date "2021.03.09"]
[Round "3"]
[White "Airquake"]
[Black "dretch"]
[Result "0-1"]
[WhiteElo "2600"]
[BlackElo "2846"]
[TimeControl "180+1"]
[EndTime "10:28:25 PST"]
[Termination "dretch won by resignation"]

1. e4 {[%clk 0:02:58.4]} 1... e6 {[%clk 0:02:51.1]} 2. d4 {[%clk 0:02:57.5]}
2... d5 {[%clk 0:02:51]} 3. Nd2 {[%clk 0:02:57.7]} 3... c5 {[%clk 0:02:49.9]} 4.
exd5 {[%clk 0:02:56.8]} 4... Qxd5 {[%clk 0:02:49.4]} 5. Ngf3 {[%clk 0:02:57.5]}
5... cxd4 {[%clk 0:02:49.7]} 6. Bc4 {[%clk 0:02:57.8]} 6... Qd7 {[%clk
0:02:48.6]} 7. O-O {[%clk 0:02:58.3]} 7... Nf6 {[%clk 0:02:48.5]} 8. Nb3 {[%clk
0:02:58.4]} 8... Nc6 {[%clk 0:02:47.9]} 9. Nbxd4 {[%clk 0:02:58.1]} 9... Nxd4
{[%clk 0:02:42.9]} 10. Nxd4 {[%clk 0:02:57.7]} 10... a6 {[%clk 0:02:41.1]} 11.
Bf4 {[%clk 0:02:50.1]} 11... Be7 {[%clk 0:02:34.4]} 12. c3 {[%clk 0:02:42.5]}
12... b5 {[%clk 0:02:29.1]} 13. Bb3 {[%clk 0:02:33.5]} 13... O-O {[%clk
0:02:27.4]} 14. a4 {[%clk 0:02:26.3]} 14... Bb7 {[%clk 0:02:21.7]} 15. axb5
{[%clk 0:02:15.9]} 15... axb5 {[%clk 0:02:21.3]} 16. Qe2 {[%clk 0:02:16.1]}
16... b4 {[%clk 0:02:11.9]} 17. Be5 {[%clk 0:01:47.2]} 17... Nd5 {[%clk
0:01:18.6]} 18. Rad1 {[%clk 0:01:05.5]} 18... bxc3 {[%clk 0:01:15.9]} 19. Qg4
{[%clk 0:01:05.5]} 19... Nf6 {[%clk 0:00:57.8]} 20. Bxf6 {[%clk 0:01:04.4]}
20... Bxf6 {[%clk 0:00:57.7]} 21. Nxe6 {[%clk 0:01:04.7]} 21... Qc8 {[%clk
0:00:56.9]} 22. bxc3 {[%clk 0:00:09.6]} 22... Kh8 {[%clk 0:00:54.1]} 23. Rfe1
{[%clk 0:00:02.8]} 23... fxe6 {[%clk 0:00:53.1]} 24. Bxe6 {[%clk 0:00:03.7]}
24... Qxc3 {[%clk 0:00:50.8]} 25. Bf5 {[%clk 0:00:04.6]} 25... Rae8 {[%clk
0:00:32.7]} 26. Qh5 {[%clk 0:00:04.4]} 26... Qxe1+ {[%clk 0:00:31.5]} 0-1

[Event "*** Titled Tuesday Blitz"]
[Site "Chess.com"]
[Date "2021.03.09"]
[Round "3"]
[White "losersgame"]
[Black "lindsay790"]
[Result "1-0"]
[WhiteElo "2364"]
[BlackElo "2190"]
[TimeControl "180+1"]
[EndTime "10:28:26 PST"]
[Termination "losersgame won by checkmate"]

1. d4 {[%clk 0:03:00.9]} 1... g6 {[%clk 0:02:59]} 2. e4 {[%clk 0:03:00]} 2...
Bg7 {[%clk 0:02:59.2]} 3. Nc3 {[%clk 0:02:59.8]} 3... d6 {[%clk 0:02:59.2]} 4.
h3 {[%clk 0:02:59.8]} 4... Nc6 {[%clk 0:02:55.5]} 5. Nf3 {[%clk 0:02:58.6]} 5...
Nf6 {[%clk 0:02:53.8]} 6. Be2 {[%clk 0:02:42.6]} 6... O-O {[%clk 0:02:48.9]} 7.
O-O {[%clk 0:02:40.2]} 7... e5 {[%clk 0:02:47.5]} 8. dxe5 {[%clk 0:02:30.4]}
8... dxe5 {[%clk 0:02:47.4]} 9. Bg5 {[%clk 0:02:24.1]} 9... Qe8 {[%clk
0:02:41.3]} 10. Bb5 {[%clk 0:02:17.5]} 10... Bd7 {[%clk 0:02:34.4]} 11. Re1
{[%clk 0:02:16.5]} 11... h6 {[%clk 0:02:34.3]} 12. Bh4 {[%clk 0:02:15.8]} 12...
g5 {[%clk 0:02:34.4]} 13. Bg3 {[%clk 0:02:15.7]} 13... Rd8 {[%clk 0:02:21.3]}
14. Nd5 {[%clk 0:02:12.7]} 14... Nxd5 {[%clk 0:02:08.6]} 15. exd5 {[%clk
0:02:12.5]} 15... Ne7 {[%clk 0:02:08.8]} 16. Bxd7 {[%clk 0:01:54.1]} 16... Rxd7
{[%clk 0:01:47.2]} 17. Nxe5 {[%clk 0:01:47.6]} 17... Rxd5 {[%clk 0:01:44.4]} 18.
Qf3 {[%clk 0:01:47]} 18... Rb5 {[%clk 0:01:30.5]} 19. Rad1 {[%clk 0:01:39.5]}
19... f5 {[%clk 0:01:21.7]} 20. Qd3 {[%clk 0:00:57.3]} 20... f4 {[%clk
0:01:13.2]} 21. Ng6 {[%clk 0:00:40.5]} 21... fxg3 {[%clk 0:00:59.4]} 22. Rxe7
{[%clk 0:00:38.9]} 22... gxf2+ {[%clk 0:00:58.2]} 23. Kf1 {[%clk 0:00:36.9]}
23... Qc6 {[%clk 0:00:43.1]} 24. Nxf8 {[%clk 0:00:36.1]} 24... Rxb2 {[%clk
0:00:04]} 25. Qh7+ {[%clk 0:00:33.1]} 25... Kxf8 {[%clk 0:00:03.1]} 26. Qxg7#
{[%clk 0:00:33.3]} 1-0